Cogmind - Beta 10.2 @@@ ROGUE MODE // 2021.07.08 @ 08:18:27 Player: Nithhogg Result: Destroyed by G-34 Mercenary with Small Laser Performance ------------- Evolutions (0) 0 Regions Visited (1) 200 Robots Destroyed (12) 60 Value Destroyed (246) 246 Prototype IDs (0) 0 Alien Tech Used (0) 0 Bonus (0) 0 TOTAL SCORE: 506 Bonus ------- None Cogmind --------- Core Integrity 0/250 Matter 300/300 Energy 96/100 System Corruption 0% Temperature Cool (6) Movement Core (350) Ox6 Location -10/Materials Parts ------- > --- POWER (1) -------- (None) > --- PROPULSION (2) --- (None) > --- UTILITY (2) ------ Large Storage Unit Propulsion Shielding > --- WEAPON (2) ------- Mining Claw > --- INVENTORY (10) --- Ion Engine Flight Unit Terrain Scanner Light Armor Plating Datajack Mining Claw Peak State ------------ > --- POWER ------------ Ion Engine > --- PROPULSION ------- Aluminum Leg Aluminum Leg > --- UTILITY ---------- Small Storage Unit Light Armor Plating > --- WEAPON ----------- Hammer Mining Claw > --- INVENTORY -------- Light Ion Engine Terrain Scanner Small Laser Assault Rifle [Rating: 7] Favorites ----------- Power Ion Engine Engine Ion Engine Propulsion Aluminum Leg Leg Aluminum Leg Flight Unit Flight Unit Utility Small Storage Unit Storage Small Storage Unit Protection Propulsion Shielding Weapon Mining Claw Energy Gun Small Laser Ballistic Gun Assault Rifle Impact Weapon Hammer Slashing Weapon Mining Claw Build | -11 -10 ------- Run | Scr Mat Slots Evolved . | . . Power . | . . Propulsion . | . . Utility . | . . Weapon . | . . Parts Attached 18 | 7 11 Power 4 | 2 2 Engine 4 | 2 2 Core . | . . Reactor . | . . Propulsion 5 | 2 3 Treads . | . . Leg 3 | 2 1 Wheel . | . . Hover . | . . Flight 2 | . 2 Utility 4 | 1 3 Device . | . . Storage 2 | 1 1 Processor . | . . Hackware . | . . Protection 2 | . 2 Artifact . | . . Weapon 5 | 2 3 Energy Gun 1 | 1 . Energy Cannon . | . . Ballistic Gun 1 | 1 . Ballistic Cannon . | . . Launcher . | . . Special Weapon . | . . Impact Weapon 2 | . 2 Slashing Weapon 1 | . 1 Piercing Weapon . | . . Special Melee Weapon . | . . Unidentified Prototypes . | . . Parts Lost 7 | . 7 Power 2 | . 2 Propulsion 4 | . 4 Utility . | . . Weapon 1 | . 1 Highest Loss Streak 3 | . 3 Average Slot Usage (%) 86 | . 86 Engine 12 | . 12 Leg 24 | . 24 Flight 1 | . 1 Storage 11 | . 11 Protection 8 | . 8 Ballistic Gun 3 | . 3 Impact Weapon 8 | . 8 Slashing Weapon 13 | . 13 Naked Turns . | . . Heaviest Build 26 | 12 26 Greatest Support 20 | 20 20 Greatest Overweight (x) 6 | . 6 Average Overweight (x) . | . . Largest Inventory Capacity 10 | 6 10 Average Capacity 6 | 5 6 Most Carried 8 | 4 8 Average Carried 2 | . 3 Final Capacity 10 | 6 10 Final Carried 6 | . 6 Class Distribution -------------------- 100% | Mutant Dominant Class ---------------- Mutant | -10/Materials Resources | -11 -10 ----------- Run | Scr Mat Matter Collected 375 | 222 153 Remotely . | . . Salvage Created 348 | . 348 Parts 23 | . 23 Haulers Intercepted . | . . Recyclers Shooed . | . . Parts Field Recycled . | . . Retrieved Matter . | . . Parts Self-Destructed . | . . Prevented . | . . Kills | -11 -10 ------- Run | Scr Mat Combat Hostiles Destroyed 11 | . 11 Melee 11 | . 11 Classes Destroyed 3 | . 3 Watcher 1 | . 1 Swarmer 6 | . 6 Grunt 5 | . 5 Best Kill Streak 3 | . 3 Combat Bots Only 3 | . 3 Max Kills in Single Turn 1 | . 1 Gunslinging . | . . Exploded . | . . Melee 1 | . 1 Uniques/NPCs Destroyed . | . . Combat | -11 -10 -------- Run | Scr Mat Damage Taken 947 | . 947 Core 258 | . 258 Absorbed by Shields . | . . Core Remaining (%) 100 | 100 . Volleys Fired . | . . Largest . | . . Hottest . | . . Shots Fired . | . . Gun . | . . Cannon . | . . Launcher . | . . Special . | . . Kinetic . | . . Thermal . | . . Explosive . | . . Electromagnetic . | . . Robot Hit Streak . | . . Robot Miss Streak . | . . Penetration Max . | . . Secondary Targets . | . . Shots Hit Robots 39 | . 39 Core Hits 12 | . 12 Critical Hits 1 | . 1 Critical Kills . | . . Critical Parts Destroyed 1 | . 1 Melee Attacks 59 | . 59 Impact 8 | . 8 Slashing 51 | . 51 Piercing . | . . Sneak Attacks . | . . Combat Hostiles . | . . Follow-up Attacks 7 | . 7 Damage Inflicted 892 | . 892 Guns . | . . Cannons . | . . Explosions . | . . Melee 892 | . 892 Ramming . | . . Kinetic . | . . Thermal . | . . Explosive . | . . Electromagnetic . | . . Impact 89 | . 89 Slashing 803 | . 803 Piercing . | . . Highest Corruption . | . . Average Corruption . | . . Corruption Purged . | . . Overload Shots . | . . Overflow Damage 6 | . 6 Projectiles . | . . Explosions . | . . Melee 6 | . 6 Knockbacks . | . . Impact . | . . Kinetic . | . . Secondary . | . . Self-Inflicted Damage . | . . Shots . | . . Rammed . | . . Targets Rammed . | . . Kicked . | . . Crushed . | . . Highest Temperature . | . . Average Temperature . | . . Received Heat Transfer 300 | . 300 Siege Activations . | . . Robots Corrupted . | . . Combat Hostiles . | . . Parts Fried . | . . Impact Corruptions . | . . Robots Melted . | . . Combat Hostiles . | . . Parts Melted . | . . Heat Transferred . | . . Parts Sabotaged . | . . Parts Stolen . | . . Parts Stripped . | . . Power Chain Reactions . | . . Missiles Intercepted . | . . Alert | -11 -10 ------- Run | Scr Mat Peak Influence 172 | . 172 Initial . | . . Average 61 | . 65 Maximum Alert Level . | . . Low Security (%) 100 | 100 100 Level 1 . | . . Level 2 . | . . Level 3 . | . . Level 4 . | . . Level 5 . | . . High Security . | . . Max Security . | . . Squads Dispatched 3 | . 3 Investigation 2 | . 2 Extermination . | . . Reinforcement 1 | . 1 Assault . | . . Garrison . | . . Intercept . | . . Construction Impeded . | . . Haulers Reinforced . | . . Stealth | -11 -10 --------- Run | Scr Mat Distress Signals 1 | . 1 Communications Jammed . | . . Distress Signals . | . . Times Spotted 21 | . 21 Peak Tracking Total 4 | . 4 Tactical Retreats 1 | . 1 Traps | -11 -10 ------- Run | Scr Mat Traps Triggered 1 | . 1 Indirectly . | . . Trap Hack Attempts . | . . Triggered . | . . Disarmed . | . . Reprogrammed . | . . Reused . | . . Traps Extracted . | . . Installed . | . . Triggered . | . . Machines | -11 -10 ---------- Run | Scr Mat Machines Disabled . | . . Max in Single Turn . | . . Machines Sabotaged . | . . Garrisons Compromised . | . . Overloaded Fab Kills . | . . Fab Network Shutdowns . | . . Hacking | -11 -10 --------- Run | Scr Mat Machines Accessed 3 | . 3 Terminals 1 | . 1 Fabricators . | . . Repair Stations 1 | . 1 Recycling Units 1 | . 1 Scanalyzers . | . . Garrison Access . | . . Total Hacks 12 | . 12 Successful 10 | . 10 Failed 2 | . 2 Catastrophic . | . . Database Lockouts . | . . Manual . | . . Terminals 5 | . 5 Fabricators . | . . Repair Stations 4 | . 4 Recycling Units 3 | . 3 Scanalyzers . | . . Garrison Access . | . . Terminal Hacks 4 | . 4 Record 3 | . 3 Maintenance Status 1 | . 1 Fabricator Hacks . | . . Repair Station Hacks 3 | . 3 Scan Component 2 | . 2 Repair 1 | . 1 Recycling Unit Hacks 3 | . 3 Process 2 | . 2 Report Inventory 1 | . 1 Scanalyzer . | . . Garrison Access Hacks . | . . Unauthorized Hacks . | . . Terminals . | . . Fabricators . | . . Repair Stations . | . . Recycling Units . | . . Scanalyzers . | . . Garrison Access . | . . Data Cores Recovered . | . . Used . | . . Hacking Detections 3 | . 3 Full Trace Events 2 | . 2 Feedback Events . | . . Feedback Blocked . | . . Robot Schematics Acquired . | . . Robots Built . | . . Matter . | . . Time . | . . Total Robot Build Rating . | . . Part Schematics Acquired . | . . Parts Built . | . . Matter . | . . Time . | . . Total Part Build Rating . | . . Parts Repaired 1 | . 1 Time 26 | . 26 Parts Recycled . | . . Recycled Matter 5 | . 5 Retrieved Matter . | . . Retrieved Components . | . . Parts Scanalyzed . | . . Part Schematics Acquired . | . . Parts Damaged . | . . Bothacking | -11 -10 ------------ Run | Scr Mat Used RIF Installer . | . . Robots Hacked . | . . Non-combat . | . . Combat . | . . Robot Hacks Applied . | . . Relay Couplers Released . | . . Robots Rewired . | . . Allies Hacked . | . . Hacks Repelled . | . . Allies | -11 -10 -------- Run | Scr Mat Total Allies . | . . Largest Group . | . . Highest-Rated Group . | . . Highest-Rated Ally . | . . Total Orders . | . . Ally Attacks . | . . Total Damage . | . . Kills . | . . Allies Corrupted . | . . Allies Melted . | . . Intel | -11 -10 ------- Run | Scr Mat Robot Analysis Total . | . . Derelict Logs Recovered . | . . Drone Launches . | . . Drone Recoveries . | . . Exploration | -11 -10 ------------- Run | Scr Mat Turns Passed 833 | 59 774 Spaces Moved 461 | 47 414 Core 18 | 15 3 Treads . | . . Legs 434 | 32 402 Wheels . | . . Hover . | . . Flight 9 | . 9 Fastest Speed 50 | 50 120 Average Speed 124 | 97 127 Slowest Speed 350 | 120 350 Overloaded Moves . | . . Propulsion Burnouts . | . . Robots Hopped . | . . Cave-ins Triggered . | . . Exploration Rate (%) 31 | 4 58 Regions Visited 1 Branch Regions . Pre-discovered Areas . | . . Known Exits Taken . | . . Unknown Exits Taken 1 | 1 . Scrap Searched . | . . Spaces Dug . | . . Terrain Destroyed . | . . Melee . | . . Projectile . | . . AOE . | . . Terrain Rammed . | . . Walls Destroyed . | . . Machines Disabled . | . . Actions | -11 -10 --------- Run | Scr Mat Total 622 | 60 562 Wait 59 | . 59 Move 460 | 46 414 Hop . | . . Pick Up 23 | 6 17 Fast Attach . | . . Attach 17 | 7 10 Detach 4 | 1 3 Swap 1 | . 1 Drop 6 | . 6 Fire . | . . Melee 52 | . 52 Ram . | . . Kick . | . . Crush . | . . Escape Stasis . | . . Rewire . | . . Trap . | . . Miscellaneous . | . . Route ------- -11/Scrapyard -10/Materials (discovered 2 exits: [*Min x2]) History --------- Turn | Location | Event 42 | -11/Scrapyard | Discovered new exit (range 13) 60 | -11/Scrapyard | Entered Materials 181 | -10/Materials | Discovered new exit (range 16) 312 | -10/Materials | Discovered new exit (range 7) 315 | -10/Materials | Build established: Mutant 457 | -10/Materials | Repaired Aluminum Leg? 762 | -10/Materials | Core integrity fell below 50% 802 | -10/Materials | Lost 3 parts (1p2n) 804 | -10/Materials | Core integrity fell below 20% 834 | -10/Materials | Destroyed by G-34 Mercenary with Small Laser Last Messages --------------- S-10 Pest destroyed. Aluminum Leg destroyed. S-10 Pest destroyed. Aluminum Leg destroyed. S-10 Pest destroyed. Acquired Flight Unit. Flying robots can pass through spaces occupied by others, even hostile robots. Acquired 18 matter. Acquired 2 matter. R-06 Scavenger collects Lgt. Assault Rifle. Acquired Lgt. Ion Engine. Acquired 10 matter. R-06 Scavenger collects Lgt. Ion Engine. K-01 Serf collects debris. K-01 Serf cleans the Nuclear Reactor. Lgt. Ion Engine destroyed. Flight Unit destroyed. Destroyed Particle Gun. [Achievement: First Step to Greatness] Map ----- +----------------------------------------------------+ | ?????????????????????????????????????????????????? | | ?????????????????????????????????????????????????? | | ?????????????????????????????????????????????????? | | ?????????????????????????????????????????????????? | | ?????????????????????????????????????????????????? | | ?????????????????????????????????????????????????? | | ?????????????????????????????????????????????????? | | ?????????????????????????????????????????????????? | | ?????????????????????????????????????????????????? | | ???????? #??????????????????????????????????????? | | ??????? #??????????????????????????????????????? | | ??????? #??????????????????????????????????????? | | ??????? #??????????????????????????????????????? | | ??????? #??????????????????????????????????????? | | ?###### #??????????????????????????????????????? | | ?# #???#+############?????????????????????? | | ?# | #????# ??????????????????????? | | ?# #?#### ??????????????????????? | | ?#!! ###!! ????????????????????????? | | ##! ##! """ ############??????????????? | | ## """ # #??????????????? | | ##! """ %# """ ""#??????????????? | | [/ ##! %/g """ T"#??????????????? | | [/ ###!! [ #g """ ""#??????????????? | | #?######### # * #??? #?????????? | | ########### ##@########## +?????????? | | ## # k= =g #?????????? | | """ / # [ #?????????? | | """ ## /w """ = #?????????? | | """ ### / # """ %######## #?????????? | | # #?#!// # """ #?? #?????????????? | | # #?#/// # # " #?????????????? | | # """ #?######## + T +?????????????? | | # """ #????????# """ # " ! #?????????????? | | # """ #? |"!???# """ # #?????????????? | | # #" ??# """ #? ? #?????????????? | | #?? ??#?????????????? | | < #??? ????????????????? | | """ #????????????????????? | | # ##### ### """ #????????????????????? | | ###+#####???######??# """ ????????????????????? | | #???????????# ????????????????????? | | """ #???????????# ????????????????????? | | """ #???????????# ########???????????????????? | | """ = #???????????? ???????????????????????????? | | #???????????? ???????????????????????????? | | """ #????????????????????????????????????????? | | """ #????????????????????????????????????????? | | """ #????????????????????????????????????????? | | #????????????????????????????????????????? | +----------------------------------------------------+ Best States ------------- Heat Dissipation 25 Energy Generation 10 Energy Capacity 250 Matter Stores 300 Matter Capacity 300 Sight Range 16 Terrain Scan Density 10 Armor Coverage 150 Propulsion Shielding 33 Evasion (%) 50 Item Schematics ----------------- None Robot Schematics ------------------ None Fabricated ------------ Nothing Alien Tech Used ----------------- None Achievements -------------- First Step to Greatness Challenges ------------ None Game ------ Seed ArmoredDisruptorJammer Manual? 0 Play Time 00:16:02 Cumulative 1.1 hours Start 2021.07.08 @ 07:55:41 End 2021.07.08 @ 08:18:27 Sessions 1 Manual Loads 0 Difficulty Rogue Special Mode None Game No. 6 Rogue 6 Adventurer 0 Explorer 0 Win Type - Total 0 Types 0/0/0/0/0/0/0/0/0 Lore% 2 Gallery% 4 Achievement% 2 Wizard Run 0 Options --------- ASCII 0 Keyboard 1 Movement Numpad Keybinds 0 Fullscreen 1 Font 18/SmallcapsGlow Map View 76x50 Tactical HUD 0 Map Filters NONE Filters NONE Steam 1 RUN: 2278fbd7-0cf8-4364-8989-18e6a721a658